Cogmind - Beta 11.2 @@@ ROGUE MODE // 2023.02.14 @ 03:08:43 Player: High Tyrol Result: Destroyed by L-31 Rogue with Katana Performance ------------- Evolutions (0) 0 Regions Visited (4) 800 Robots Destroyed (37) 185 Value Destroyed (792) 792 Prototype IDs (3) 60 Alien Tech Used (0) 0 Bonus (300) 300 TOTAL SCORE: 2137 Bonus ------- Aligned with FarCom 300 Cogmind --------- Core Integrity 0/250 Matter 292/300 Energy 250/250 System Corruption 0% Temperature Cool (0) Movement Walking (190) Ox1 Location -9/Mines Parts ------- > --- POWER (1) -------- Ion Engine > --- PROPULSION (2) --- Aluminum Leg Aluminum Leg > --- UTILITY (2) ------ Large Storage Unit Improved Targeting Computer > --- WEAPON (2) ------- Autogun Maul > --- INVENTORY (15) --- Improved Ion Engine Improved Ion Engine Aluminum Leg Wheel Flying Fortress v7 Large Storage Unit High-capacity Matter Pod (200) Experimental Sensor Array Heavy EM Pulse Gun Heavy EM Pulse Gun Autogun Rocket Launcher Peak State ------------ > --- POWER ------------ Ion Engine > --- PROPULSION ------- Aluminum Leg Aluminum Leg > --- UTILITY ---------- Large Storage Unit Improved Targeting Computer > --- WEAPON ----------- Autogun Field Lobotomy Kit > --- INVENTORY -------- Improved Ion Engine Improved Ion Engine Aluminum Leg Aluminum Leg Wheel Large Storage Unit High-capacity Matter Pod High-capacity Matter Pod High-capacity Matter Pod Experimental Sensor Array Heavy EM Pulse Gun Heavy EM Pulse Gun Autogun Autogun Rocket Launcher [Rating: 21] Favorites ----------- Power Improved Ion Engine Engine Improved Ion Engine Propulsion Aluminum Leg Leg Aluminum Leg Flight Unit Improved Flight Unit Utility Large Storage Unit Storage Large Storage Unit Processor Improved Targeting Computer Weapon Autogun Ballistic Gun Autogun Launcher Rocket Launcher Special Weapon Field Lobotomy Kit Impact Weapon Maul Build | -11 -10 -10 -10 -9 ------- Run | Scr Mat Min Exi Min Slots Evolved . | . . . . . Power . | . . . . . Propulsion . | . . . . . Utility . | . . . . . Weapon . | . . . . . Parts Attached 27 | 7 11 3 4 2 Power 4 | 1 2 1 . . Engine 4 | 1 2 1 . . Core . | . . . . . Reactor . | . . . . . Propulsion 8 | 2 3 1 2 . Treads . | . . . . . Leg 7 | 2 2 1 2 . Wheel . | . . . . . Hover . | . . . . . Flight 1 | . 1 . . . Utility 6 | 2 4 . . . Device . | . . . . . Storage 5 | 2 3 . . . Processor 1 | . 1 . . . Hackware . | . . . . . Protection . | . . . . . Artifact . | . . . . . Weapon 9 | 2 2 1 2 2 Energy Gun . | . . . . . Energy Cannon . | . . . . . Ballistic Gun 6 | 2 2 . 1 1 Ballistic Cannon . | . . . . . Launcher 1 | . . 1 . . Special Weapon 1 | . . . 1 . Impact Weapon 1 | . . . . 1 Slashing Weapon . | . . . . . Piercing Weapon . | . . . . . Special Melee Weapon . | . . . . . Unidentified Prototypes 2 | . 1 . 1 . Parts Lost 2 | . . 2 . . Power . | . . . . . Propulsion 1 | . . 1 . . Utility . | . . . . . Weapon 1 | . . 1 . . Highest Loss Streak 1 | . . 1 . . To Critical Strikes . | . . . . . Average Slot Usage (%) 99 | . 100 99 98 100 Engine 14 | . 14 14 14 14 Leg 27 | . 27 27 28 28 Storage 16 | . 22 14 14 14 Processor 11 | . 5 14 14 14 Ballistic Gun 24 | . 28 25 20 20 Launcher 2 | . . 2 6 . Naked Turns . | . . . . . Heaviest Build 37 | 15 37 33 32 31 Greatest Support 20 | 20 20 20 20 20 Greatest Overweight (x) 3 | 3 3 3 2 1 Average Overweight (x) . | . . 1 1 1 Largest Inventory Capacity 15 | 8 15 15 15 15 Average Capacity 14 | 7 14 15 15 15 Most Carried 15 | 8 15 15 15 15 Average Carried 13 | 4 13 14 14 14 Final Capacity 15 | 8 15 15 15 15 Final Carried 15 | 8 15 14 15 15 Class Distribution -------------------- 100% | Mutant Dominant Class ---------------- Mutant | -10/Materials Mutant | -10/Mines Mutant | -10/Exiles Mutant | -9/Mines Resources | -11 -10 -10 -10 -9 ----------- Run | Scr Mat Min Exi Min Matter Collected 1325 | 397 298 540 70 20 Remotely . | . . . . . Salvage Created 1037 | 207 298 423 . 109 Parts 72 | 13 23 31 . 5 Haulers Intercepted . | . . . . . Recyclers Shooed . | . . . . . Parts Field Recycled . | . . . . . Retrieved Matter . | . . . . . Parts Self-Destructed . | . . . . . Prevented . | . . . . . Kills | -11 -10 -10 -10 -9 ------- Run | Scr Mat Min Exi Min Combat Hostiles Destroyed 30 | . 7 20 . 3 Melee 3 | . . . . 3 Guns 22 | . 7 15 . . AOE 5 | . . 5 . . Classes Destroyed 6 | 3 1 2 . . Worker 3 | 2 1 . . . Tunneler 6 | 5 . 1 . . Recycler 1 | 1 . . . . Swarmer 9 | . . 9 . . Grunt 18 | . 7 8 . 3 Assembled 3 | . . 3 . . Best Kill Streak 4 | 3 3 4 . 3 Combat Bots Only 4 | . 3 4 . 3 Max Kills in Single Turn 2 | 1 1 2 . 1 Gunslinging . | . . . . . Exploded 2 | . . 2 . . Melee 1 | . . . . 1 Uniques/NPCs Destroyed . | . . . . . Combat | -11 -10 -10 -10 -9 -------- Run | Scr Mat Min Exi Min Damage Taken 1207 | . 393 499 . 315 Core 263 | . 57 81 . 125 Absorbed by Shields . | . . . . . Core Remaining (%) 100 | 100 . . . . Volleys Fired 84 | 17 30 37 . . Largest 2 | 2 2 2 . . Hottest 56 | 40 46 56 . . Shots Fired 168 | 34 60 74 . . Gun 160 | 34 60 66 . . Cannon . | . . . . . Launcher 8 | . . 8 . . Special . | . . . . . Kinetic 160 | 34 60 66 . . Thermal . | . . . . . Explosive 8 | . . 8 . . Electromagnetic . | . . . . . Robot Hit Streak 9 | 7 6 9 . . Robot Miss Streak 4 | 3 3 4 . . Penetration Max . | . . . . . Secondary Targets 4 | . 1 3 . . Max Gunslinging Chain 1 | . 1 1 . . Shots Hit Robots 102 | 21 35 40 . 6 Core Hits 55 | 9 13 31 . 2 Critical Kills 2 | 1 . . . 1 Critical Parts Destroyed 2 | . 1 . . 1 Critical Strikes 4 | 1 1 . . 2 Destroy 2 | 1 1 . . . Smash 2 | . . . . 2 Melee Attacks 8 | . . . . 8 Impact 8 | . . . . 8 Slashing . | . . . . . Piercing . | . . . . . Sneak Attacks . | . . . . . Combat Hostiles . | . . . . . Follow-up Attacks . | . . . . . Damage Inflicted 2034 | 271 489 980 . 294 Guns 1349 | 271 489 589 . . Cannons . | . . . . . Explosions 383 | . . 383 . . Melee 286 | . . . . 286 Ramming 16 | . . 8 . 8 Kinetic 1349 | 271 489 589 . . Thermal . | . . . . . Explosive 383 | . . 383 . . Electromagnetic . | . . . . . Impact 286 | . . . . 286 Slashing . | . . . . . Piercing . | . . . . . Highest Corruption . | . . . . . Average Corruption . | . . . . . Corruption Purged . | . . . . . Corruption Blocked . | . . . . . Overload Shots . | . . . . . Overflow Damage 48 | . . . . 48 Projectiles . | . . . . . Explosions . | . . . . . Melee 48 | . . . . 48 Knockbacks 1 | . . . . 1 Impact 1 | . . . . 1 Kinetic . | . . . . . Secondary . | . . . . . Self-Inflicted Damage 100 | . . 100 . . Shots 3 | . . 3 . . Rammed . | . . . . . Targets Rammed 5 | . . 4 . 1 Kicked 5 | . . 4 . 1 Crushed . | . . . . . Highest Temperature 46 | . 9 46 . . Average Temperature 11 | . 4 13 . . Received Heat Transfer 402 | . 222 84 . 96 Siege Activations . | . . . . . Robots Corrupted . | . . . . . Combat Hostiles . | . . . . . Parts Fried 1 | . . . . 1 Impact Corruptions 1 | . . . . 1 Robots Melted . | . . . . . Combat Hostiles . | . . . . . Parts Melted 2 | . . 2 . . Heat Transferred . | . . . . . Parts Sabotaged . | . . . . . Parts Stolen . | . . . . . Parts Stripped . | . . . . . Power Chain Reactions . | . . . . . Missiles Intercepted . | . . . . . Alert | -11 -10 -10 -10 -9 ------- Run | Scr Mat Min Exi Min Peak Influence 245 | 40 244 245 . 69 Initial 54 | . 26 54 . . Average 74 | 15 104 78 . 11 Maximum Alert Level 1 | . 1 1 . . Low Security (%) 89 | 100 81 90 . 100 Level 1 10 | . 18 9 . . Level 2 . | . . . . . Level 3 . | . . . . . Level 4 . | . . . . . Level 5 . | . . . . . High Security . | . . . . . Max Security . | . . . . . Squads Dispatched 5 | . 3 1 . 1 Investigation 3 | . 2 . . 1 Extermination . | . . . . . Reinforcement 1 | . 1 . . . Assault 1 | . . 1 . . Garrison . | . . . . . Intercept . | . . . . . Searches Triggered . | . . . . . Construction Impeded . | . . . . . Haulers Reinforced . | . . . . . Active Scanning Responses . | . . . . . Cargo Convoy Interrupts . | . . . . . Stealth | -11 -10 -10 -10 -9 --------- Run | Scr Mat Min Exi Min Distress Signals 1 | . 1 . . . Communications Jammed . | . . . . . Distress Signals . | . . . . . Times Spotted 42 | . 14 23 . 5 Peak Tracking Total 5 | . 4 4 . 5 Tactical Retreats 1 | . 1 . . . Traps | -11 -10 -10 -10 -9 ------- Run | Scr Mat Min Exi Min Traps Triggered . | . . . . . Indirectly . | . . . . . Trap Hack Attempts . | . . . . . Triggered . | . . . . . Disarmed . | . . . . . Reprogrammed . | . . . . . Reused . | . . . . . Traps Extracted . | . . . . . Installed . | . . . . . Triggered . | . . . . . Machines | -11 -10 -10 -10 -9 ---------- Run | Scr Mat Min Exi Min Machines Disabled . | . . . . . Max in Single Turn . | . . . . . Machines Sabotaged . | . . . . . Garrisons Compromised . | . . . . . Overloaded Fab Kills . | . . . . . Hacking | -11 -10 -10 -10 -9 --------- Run | Scr Mat Min Exi Min Machines Accessed 7 | . 5 . . 2 Terminals 6 | . 4 . . 2 Fabricators . | . . . . . Repair Stations . | . . . . . Recycling Units 1 | . 1 . . . Scanalyzers . | . . . . . Garrison Access . | . . . . . Total Hacks 21 | . 12 . . 9 Successful 10 | . 7 . . 3 Failed 9 | . 4 . . 5 Catastrophic . | . . . . . Database Lockouts 2 | . 1 . . 1 Manual 25 | . 15 . 1 9 Terminals 20 | . 11 . . 9 Fabricators . | . . . . . Repair Stations . | . . . . . Recycling Units 1 | . 1 . . . Scanalyzers . | . . . . . Garrison Access . | . . . . . Terminal Hacks 8 | . 5 . . 3 Robot Analysis 4 | . 2 . . 2 Prototype ID Bank 1 | . 1 . . . Terminal Index 2 | . 1 . . 1 Recycling Unit Index 1 | . 1 . . . Fabricator Hacks . | . . . . . Repair Station Hacks . | . . . . . Recycling Unit Hacks . | . . . . . Scanalyzer . | . . . . . Garrison Access Hacks . | . . . . . Unauthorized Hacks 2 | . 2 . . . Terminals 1 | . 1 . . . Operators 1 | . 1 . . . Fabricators . | . . . . . Repair Stations . | . . . . . Recycling Units 1 | . 1 . . . Tunnel 1 | . 1 . . . Scanalyzers . | . . . . . Garrison Access . | . . . . . Data Cores Recovered . | . . . . . Used . | . . . . . Hacking Detections 6 | . 4 . . 2 Full Trace Events 3 | . 2 . . 1 Feedback Events . | . . . . . Feedback Blocked . | . . . . . Robot Schematics Acquired . | . . . . . Robots Built . | . . . . . Authchips . | . . . . . Time . | . . . . . Total Robot Build Rating . | . . . . . Part Schematics Acquired . | . . . . . Parts Built . | . . . . . Authchips . | . . . . . Time . | . . . . . Total Part Build Rating . | . . . . . Parts Repaired . | . . . . . Time . | . . . . . Parts Recycled . | . . . . . Recycled Matter . | . . . . . Retrieved Matter . | . . . . . Retrieved Components . | . . . . . Parts Scanalyzed . | . . . . . Part Schematics Acquired . | . . . . . Parts Damaged . | . . . . . Bothacking | -11 -10 -10 -10 -9 ------------ Run | Scr Mat Min Exi Min Used RIF Installer . | . . . . . Robots Hacked . | . . . . . Non-combat . | . . . . . Combat . | . . . . . Robot Hacks Applied . | . . . . . Relay Couplers Released . | . . . . . Fabnet Peak Effective % . | . . . . . Robots Rewired . | . . . . . Allies Hacked . | . . . . . Hacks Repelled . | . . . . . Allies | -11 -10 -10 -10 -9 -------- Run | Scr Mat Min Exi Min Total Allies 1 | . . 1 . . Largest Group 1 | . . 1 . . Highest-Rated Group 31 | . . 31 . . Highest-Rated Ally 31 | . . 31 . . Total Orders . | . . . . . Ally Attacks 15 | . . 15 . . Total Damage 294 | . . 294 . . Kills 1 | . . 1 . . Allies Corrupted . | . . . . . Allies Melted . | . . . . . Intel | -11 -10 -10 -10 -9 ------- Run | Scr Mat Min Exi Min Robot Analysis Total 4 | . 2 . . 2 Derelict Logs Recovered 1 | . . 1 . . Drone Launches . | . . . . . Drone Recoveries . | . . . . . Exploration | -11 -10 -10 -10 -9 ------------- Run | Scr Mat Min Exi Min Turns Passed 3041 | 212 657 1458 502 212 Spaces Moved 1396 | 111 270 663 257 95 Core 7 | 7 . . . . Treads . | . . . . . Legs 1389 | 104 270 663 257 95 Wheels . | . . . . . Hover . | . . . . . Flight . | . . . . . Fastest Speed 50 | 50 120 190 190 190 Average Speed 184 | 129 186 190 190 190 Slowest Speed 330 | 200 330 330 260 190 Overloaded Moves . | . . . . . Propulsion Burnouts . | . . . . . Robots Hopped . | . . . . . Cave-ins Triggered . | . . . . . Exploration Rate (%) 44 | 9 32 98 60 25 Regions Visited 4 Branch Regions 3 Pre-discovered Areas 1 | . 1 . . . Known Exits Taken . | . . . . . Unknown Exits Taken 4 | 1 1 1 1 . Scrap Searched 2 | . . 1 . 1 Spaces Dug 1 | . . . . 1 Terrain Destroyed 74 | . . 73 . 1 Melee 1 | . . . . 1 Projectile . | . . . . . AOE 73 | . . 73 . . Terrain Rammed . | . . . . . Walls Destroyed . | . . . . . Machines Disabled . | . . . . . Actions | -11 -10 -10 -10 -9 --------- Run | Scr Mat Min Exi Min Total 1688 | 142 369 795 273 109 Wait 114 | . 29 84 . 1 Move 1392 | 110 269 662 256 95 Hop . | . . . . . Pick Up 30 | 8 15 2 4 1 Fast Attach 14 | 7 3 2 2 . Attach 3 | . 1 1 1 . Detach 2 | . 1 . 1 . Swap 10 | . 7 . 1 2 Drop 26 | . 14 3 8 1 Fire 84 | 17 30 37 . . Melee 8 | . . . . 8 Ram . | . . . . . Kick 5 | . . 4 . 1 Crush . | . . . . . Escape Stasis . | . . . . . Rewire . | . . . . . Trap . | . . . . . Miscellaneous . | . . . . . Route ------- -11/Scrapyard -10/Materials -10/Mines (discovered 3 exits: [*Mat x2] / *Exi) -10/Exiles -9/Mines History --------- Turn | Location | Event 2 | -11/Scrapyard | Met Revision 17 15 | -11/Scrapyard | Discovered new exit (range 16) 213 | -11/Scrapyard | Entered Materials 310 | -10/Materials | Build established: Mutant 692 | -10/Materials | Discovered new exit (range 13) 721 | -10/Materials | Central database locked down 870 | -10/Materials | Entered Mines 908 | -10/Mines | Discovered new exit (range 14) 1058 | -10/Mines | Discovered new exit (range 6) 1234 | -10/Mines | Received a Rocket Launcher from a helpful Derelict 1481 | -10/Mines | Found a damaged Exp. Sensor Array with a note attached 1759 | -10/Mines | Met a Derelict testing a Signal Generator 1817 | -10/Mines | Excavation squad dispatched 1817 | -10/Mines | A large section of the Mines collapsed 2069 | -10/Mines | Found Prototype Device 2244 | -10/Mines | Core integrity fell below 50% 2320 | -10/Mines | Deemed a non-threat by the Exiles lab entrance 2320 | -10/Mines | Discovered new exit (range 5) 2328 | -10/Mines | Entered Exiles 2380 | -10/Exiles | Met 8R-AWN 2408 | -10/Exiles | Met EX-HEX 2465 | -10/Exiles | Met EX-BIN 2486 | -10/Exiles | Aligned with FarCom system 2488 | -10/Exiles | Given EX-Vault access code 2534 | -10/Exiles | Opened EX-Vault 2542 | -10/Exiles | Found Prototype Special Weapon 2542 | -10/Exiles | Identified Field Lobotomy Kit 2561 | -10/Exiles | Found Prototype Flight Unit 2602 | -10/Exiles | Warned to stay clear of 0b10 Research branches 2744 | -10/Exiles | Met EX-DEC 2809 | -10/Exiles | Discovered new exit (range 12) 2830 | -10/Exiles | Left Exiles lab with Flying Fortress v7 2830 | -10/Exiles | Entered Mines 2840 | -9/Mines | Central database locked down 3042 | -9/Mines | Destroyed by L-31 Rogue with Katana Last Messages --------------- 02880_ K-01 Serf collects debris. 02920_ Searching scrap... 02920_ Found Maul. 02920_ Found Structural Scanner. 02920_ Found Datajack. 02920_ Found Field Recycling Unit. 02920_ Found 20 Matter. 02921_ Acquired 8 matter. 02927_ Dropped Autogun. 02928_ Acquired Maul. 02944_ Connecting with Terminal... 02954_ Acquired 12 matter. 03010_ G-34 Mercenary knocked back. 03019_ G-34 Mercenary suffers critical hit (Smash). 03019_ Destroyed Aluminum Leg. 03019_ G-34 Mercenary system corrupted by crushing effect. 03019_ Ion Engine fried. 03019_ G-34 Mercenary destroyed. 03034_ G-34 Mercenary suffers critical hit (Smash). 03034_ G-34 Mercenary destroyed. Map ----- +----------------------------------------------------+ | ???????????# #????????????? | | ???????????## #????????????? | | ???????????## ##????????????? | | ?????????### ##?????????????? | | ????###### ##??????????????? | | ???## ## ### #???????????????? | | ??## ##?# #####???????????? | | ??# #??# !/ ! #???????????? | | ??# ##??# ###[#???????????? | | ??# ###???# #?# #?????###???? | | ??# ##?????# #?# #??? ???? | | ??# ##?????# #?# ## """ "????? | | ??## #####?# #?# "T """ "????? | | ???# #?# #?# ## """ "????? | | ???# ## #?# ?# ?? ???? | | ???# ### #?# ?###???"" ""???? | | ???## ##?# #?# ??#?????? ""???? | | ????####### ## #???????"????? | | ???????#%* #?????????????? | | ???????#%###### #??????????????? | | ???????#[#?????###???????????????? | | ???????#=#???????????????????????? | | ???????#%##??????????????????????? | | ???????#=t#####??????????????????? | | ??????##ll #??????????????????? | | ??????# @### #??????????????????? | | ?????# #??????????????????????? | | ????# #?????????????????????? | | ???# #?????????????????????? | | ???# ##?????????????????????? | | ???# ##??????????????????????? | | ???## ##???????????????????????? | | ????####?????????????????????????? | | ?????????????????????????????????? | | ?????????????????????????????????? | | ?????????????????????????????????? | | ?????????????????????????????????? | | ?????????????????????????????????? | | ?????????????????????????????????? | | ?????????????????????????????????? | | ?????????????????????????????????? | | ?????????????????????????????????? | | ?????????????????????????????????? | | ?????????????????????????????????? | | ?????????????????????????????????? | | ?????????????????????????????????? | | ?????????????????????????????????? | | ?????????????????????????????????? | | ?????????????????????????????????? | | ?????????????????????????????????? | +----------------------------------------------------+ Best States ------------- Heat Dissipation 25 Energy Generation 12 Energy Capacity 265 Matter Stores 436 Matter Capacity 500 Sight Range 16 Terrain Scan Density 10 Evasion (%) 55 Targeting Accuracy 6 Item Schematics ----------------- None Robot Schematics ------------------ None Fabricated ------------ Nothing Alien Tech Used ----------------- None Achievements -------------- None Challenges ------------ None Game ------ Seed easy15 Manual? 1 Play Time 00:30:36 Cumulative 35.2 hours Start 2023.02.14 @ 02:29:14 End 2023.02.14 @ 03:08:43 Sessions 1 Manual Loads 0 Difficulty Rogue Special Mode None Game No. 49 Rogue 49 Adventurer 0 Explorer 0 Win Type - Total 0 Types 0/0/0/0/0/0/0/0/0 Lore% 24 Gallery% 25 Achievement% 23 Wizard Run 0 Options --------- ASCII 0 Keyboard 0 Movement Mouse Keybinds 0 Fullscreen 1 Font 24/Smallcaps Map View 64x52 Tactical HUD 1 Map Filters NONE Filters NONE Steam 1 RUN: b5a675bf-7b8c-4c62-87c6-4a7e2cb7debe